[Event "*** Titled Tuesday Blitz"]
[Site "Chess.com"]
[Date "2020.05.05"]
[Round "7"]
[White "NefeLV"]
[Black "KerryStead"]
[Result "0-1"]
[WhiteElo "1782"]
[BlackElo "2154"]
[TimeControl "180+1"]
[EndTime "11:17:28 PDT"]
[Termination "KerryStead won on time"]

1. c4 {[%clk 0:03:00.9]} 1... g6 {[%clk 0:02:57.8]} 2. d4 {[%clk 0:03:00]} 2...
Bg7 {[%clk 0:02:57.6]} 3. Nc3 {[%clk 0:02:59.2]} 3... c5 {[%clk 0:02:55]} 4. Nf3
{[%clk 0:02:58.1]} 4... Nc6 {[%clk 0:02:52.7]} 5. d5 {[%clk 0:02:48.2]} 5... Nd4
{[%clk 0:02:51.1]} 6. Nxd4 {[%clk 0:02:28.1]} 6... Bxd4 {[%clk 0:02:49.6]} 7. e3
{[%clk 0:02:29]} 7... Bxc3+ {[%clk 0:02:47.9]} 8. bxc3 {[%clk 0:02:28.6]} 8...
f5 {[%clk 0:02:47.6]} 9. Bd3 {[%clk 0:02:03.3]} 9... Nf6 {[%clk 0:02:46]} 10.
O-O {[%clk 0:01:55.9]} 10... d6 {[%clk 0:02:42.3]} 11. f3 {[%clk 0:01:52.2]}
11... Qa5 {[%clk 0:02:41.1]} 12. Qc2 {[%clk 0:01:50.9]} 12... Bd7 {[%clk
0:02:39.8]} 13. e4 {[%clk 0:01:48.1]} 13... fxe4 {[%clk 0:02:38.6]} 14. fxe4
{[%clk 0:01:47.6]} 14... O-O-O {[%clk 0:02:37.4]} 15. e5 {[%clk 0:01:43.8]}
15... Ng4 {[%clk 0:02:33.6]} 16. e6 {[%clk 0:01:39.4]} 16... Ba4 {[%clk
0:02:31.6]} 17. Qb2 {[%clk 0:01:27.6]} 17... Rdf8 {[%clk 0:02:23.8]} 18. Bg5
{[%clk 0:01:15]} 18... Nf6 {[%clk 0:01:45]} 19. Rab1 {[%clk 0:01:13.9]} 19...
Qa6 {[%clk 0:01:41.7]} 20. Qa3 {[%clk 0:01:03.9]} 20... Nxd5 {[%clk 0:01:28]}
21. Rxf8+ {[%clk 0:00:48.7]} 21... Rxf8 {[%clk 0:01:26.4]} 22. cxd5 {[%clk
0:00:45.6]} 22... Qxd3 {[%clk 0:01:23.2]} 23. Rc1 {[%clk 0:00:04.8]} 23... Bb5
{[%clk 0:01:21.3]} 24. h4 {[%clk 0:00:03]} 24... Qxd5 {[%clk 0:01:15.7]} 25.
Bxe7 {[%clk 0:00:01.6]} 25... Re8 {[%clk 0:01:14.2]} 0-1

[Event "*** Titled Tuesday Blitz"]
[Site "Chess.com"]
[Date "2020.05.05"]
[Round "7"]
[White "turayev_shahruh17"]
[Black "platy3"]
[Result "0-1"]
[WhiteElo "2543"]
[BlackElo "2714"]
[TimeControl "180+1"]
[EndTime "11:17:29 PDT"]
[Termination "platy3 won by resignation"]

1. e4 {[%clk 0:03:00]} 1... e5 {[%clk 0:02:58.8]} 2. Nc3 {[%clk 0:03:00.9]} 2...
Nc6 {[%clk 0:02:59.1]} 3. Bc4 {[%clk 0:03:01.3]} 3... Nf6 {[%clk 0:02:58]} 4. d3
{[%clk 0:03:01.8]} 4... Bb4 {[%clk 0:02:56.5]} 5. Ne2 {[%clk 0:03:01.7]} 5... h6
{[%clk 0:02:48.5]} 6. O-O {[%clk 0:03:01.6]} 6... O-O {[%clk 0:02:49.1]} 7. f4
{[%clk 0:02:56.8]} 7... d6 {[%clk 0:02:45.8]} 8. f5 {[%clk 0:02:57.1]} 8... Na5
{[%clk 0:02:46]} 9. Bb3 {[%clk 0:02:25.7]} 9... Nxb3 {[%clk 0:02:45.9]} 10. axb3
{[%clk 0:02:25.6]} 10... d5 {[%clk 0:02:46.6]} 11. exd5 {[%clk 0:02:12.6]} 11...
Nxd5 {[%clk 0:02:33.8]} 12. Nxd5 {[%clk 0:02:13]} 12... Qxd5 {[%clk 0:02:33.8]}
13. f6 {[%clk 0:02:13.4]} 13... Bc5+ {[%clk 0:02:29.3]} 14. Kh1 {[%clk 0:02:13]}
14... Bh3 {[%clk 0:02:03]} 15. Rf3 {[%clk 0:01:44.4]} 15... Bxg2+ {[%clk
0:02:03]} 16. Kxg2 {[%clk 0:01:43.7]} 16... e4 {[%clk 0:02:03.9]} 17. Rg3 {[%clk
0:01:16.1]} 17... exd3+ {[%clk 0:02:01.7]} 18. Kh3 {[%clk 0:01:09]} 18... Qf5+
{[%clk 0:01:36.3]} 19. Kg2 {[%clk 0:01:05]} 19... Qf2+ {[%clk 0:01:20.1]} 20.
Kh3 {[%clk 0:00:43.5]} 20... dxe2 {[%clk 0:01:21]} 21. Qd3 {[%clk 0:00:16.9]}
21... Qf1+ {[%clk 0:01:15.9]} 22. Kh4 {[%clk 0:00:16.3]} 22... Qxf6+ {[%clk
0:01:14]} 23. Kh3 {[%clk 0:00:13.2]} 23... e1=Q {[%clk 0:01:12.9]} 24. Bxh6
{[%clk 0:00:13.1]} 24... Qxh6+ {[%clk 0:01:11.6]} 0-1

[Event "*** Titled Tuesday Blitz"]
[Site "Chess.com"]
[Date "2020.05.05"]
[Round "7"]
[White "S-Fazulyanov"]
[Black "Aleksandar-Topalov"]
[Result "0-1"]
[WhiteElo "2539"]
[BlackElo "2403"]
[TimeControl "180+1"]
[EndTime "11:17:29 PDT"]
[Termination "Aleksandar-Topalov won by resignation"]

1. e4 {[%clk 0:02:53.7]} 1... e6 {[%clk 0:02:59.8]} 2. d4 {[%clk 0:02:53]} 2...
d5 {[%clk 0:03:00]} 3. e5 {[%clk 0:02:53.4]} 3... Qd7 {[%clk 0:02:59.7]} 4. c3
{[%clk 0:02:54.3]} 4... Ne7 {[%clk 0:02:59.7]} 5. Bd3 {[%clk 0:02:53.3]} 5... b6
{[%clk 0:03:00]} 6. f4 {[%clk 0:02:52.4]} 6... h5 {[%clk 0:02:59.2]} 7. Nf3
{[%clk 0:02:52.6]} 7... g6 {[%clk 0:02:59.5]} 8. a4 {[%clk 0:02:52.8]} 8... Ba6
{[%clk 0:02:59.6]} 9. Bxa6 {[%clk 0:02:51.6]} 9... Nxa6 {[%clk 0:02:59.8]} 10.
Qd3 {[%clk 0:02:52]} 10... Nb8 {[%clk 0:02:59.9]} 11. a5 {[%clk 0:02:52.5]}
11... Nbc6 {[%clk 0:02:59.9]} 12. axb6 {[%clk 0:02:52.4]} 12... cxb6 {[%clk
0:03:00.4]} 13. b4 {[%clk 0:02:51.1]} 13... Nf5 {[%clk 0:03:00.3]} 14. Nbd2
{[%clk 0:02:48.8]} 14... Be7 {[%clk 0:02:59.8]} 15. Nf1 {[%clk 0:02:47.1]} 15...
Kf8 {[%clk 0:02:59.2]} 16. g3 {[%clk 0:02:42.5]} 16... Kg7 {[%clk 0:02:58.7]}
17. h3 {[%clk 0:02:38.8]} 17... a5 {[%clk 0:02:58.6]} 18. bxa5 {[%clk
0:02:35.8]} 18... Nxa5 {[%clk 0:02:56.5]} 19. Rh2 {[%clk 0:02:32.5]} 19... Nc4
{[%clk 0:02:56.3]} 20. Rha2 {[%clk 0:02:29.7]} 20... Qb7 {[%clk 0:02:47.3]} 21.
Qb1 {[%clk 0:02:23.1]} 21... h4 {[%clk 0:02:37.2]} 22. g4 {[%clk 0:02:21.1]}
22... Ng3 {[%clk 0:02:36.2]} 23. f5 {[%clk 0:01:54.9]} 23... gxf5 {[%clk
0:02:30.3]} 24. Nxg3 {[%clk 0:01:55.3]} 24... hxg3 {[%clk 0:02:29.7]} 25. gxf5
{[%clk 0:01:56]} 25... exf5 {[%clk 0:02:15.7]} 26. Qxf5 {[%clk 0:01:54.9]} 26...
Rxa2 {[%clk 0:02:08.8]} 27. Rxa2 {[%clk 0:01:54.8]} 27... b5 {[%clk 0:01:45.6]}
28. Rg2 {[%clk 0:01:51.9]} 28... b4 {[%clk 0:01:39]} 29. Rxg3+ {[%clk
0:01:49.3]} 29... Kf8 {[%clk 0:01:39.6]} 30. e6 {[%clk 0:01:44.5]} 30... Bd6
{[%clk 0:01:39.7]} 31. Rg6 {[%clk 0:01:13.8]} 31... b3 {[%clk 0:01:34.1]} 32.
Rf6 {[%clk 0:01:12.6]} 32... Bg3+ {[%clk 0:01:24.7]} 33. Kf1 {[%clk 0:01:08.2]}
33... Nd6 {[%clk 0:01:24.6]} 34. Ba3 {[%clk 0:00:57.6]} 34... Qa6+ {[%clk
0:01:23]} 35. Kg2 {[%clk 0:00:53.1]} 35... Qxa3 {[%clk 0:01:23.2]} 36. Rxf7+
{[%clk 0:00:53.2]} 36... Ke8 {[%clk 0:01:23.9]} 37. Qf6 {[%clk 0:00:51.3]} 37...
Qb2+ {[%clk 0:01:19.7]} 38. Kxg3 {[%clk 0:00:51.1]} 38... Rg8+ {[%clk
0:01:20.2]} 39. Ng5 {[%clk 0:00:44.7]} 39... Qxc3+ {[%clk 0:01:17.6]} 40. Kg4
{[%clk 0:00:44.1]} 40... Rxg5+ {[%clk 0:01:10.5]} 41. Kxg5 {[%clk 0:00:45]}
41... Ne4+ {[%clk 0:01:10.4]} 42. Kg4 {[%clk 0:00:45.9]} 42... Nxf6+ {[%clk
0:01:10.6]} 43. Kg5 {[%clk 0:00:44.7]} 0-1

[Event "*** Titled Tuesday Blitz"]
[Site "Chess.com"]
[Date "2020.05.05"]
[Round "7"]
[White "zala02"]
[Black "djano"]
[Result "0-1"]
[WhiteElo "2266"]
[BlackElo "2434"]
[TimeControl "180+1"]
[EndTime "11:17:29 PDT"]
[Termination "djano won by resignation"]

1. d4 {[%clk 0:03:00.9]} 1... d5 {[%clk 0:02:57]} 2. c4 {[%clk 0:03:00.9]} 2...
c6 {[%clk 0:02:56.6]} 3. Nf3 {[%clk 0:03:00.4]} 3... Nf6 {[%clk 0:02:55]} 4. e3
{[%clk 0:03:00.1]} 4... a6 {[%clk 0:02:54.8]} 5. Bd3 {[%clk 0:02:50]} 5... Bg4
{[%clk 0:02:54.6]} 6. h3 {[%clk 0:02:47.8]} 6... Bh5 {[%clk 0:02:51.4]} 7. O-O
{[%clk 0:02:46.5]} 7... e6 {[%clk 0:02:51.3]} 8. b3 {[%clk 0:02:20]} 8... Nbd7
{[%clk 0:02:49.9]} 9. Bb2 {[%clk 0:02:19.9]} 9... Bd6 {[%clk 0:02:49.8]} 10.
Nbd2 {[%clk 0:02:15.2]} 10... O-O {[%clk 0:02:48.2]} 11. e4 {[%clk 0:02:10.7]}
11... dxe4 {[%clk 0:02:48.6]} 12. Nxe4 {[%clk 0:02:10.8]} 12... Nxe4 {[%clk
0:02:48.7]} 13. Bxe4 {[%clk 0:02:11.1]} 13... Nf6 {[%clk 0:02:46.4]} 14. Bc2
{[%clk 0:02:11.1]} 14... Qe7 {[%clk 0:02:45.1]} 15. Rc1 {[%clk 0:02:04.2]} 15...
Ba3 {[%clk 0:02:43.1]} 16. Bxa3 {[%clk 0:02:01.2]} 16... Qxa3 {[%clk 0:02:44]}
17. Bb1 {[%clk 0:02:00.3]} 17... Rad8 {[%clk 0:02:41.5]} 18. g4 {[%clk
0:01:49.1]} 18... Bg6 {[%clk 0:02:40.3]} 19. Bxg6 {[%clk 0:01:45.8]} 19... hxg6
{[%clk 0:02:41.2]} 20. Qe2 {[%clk 0:01:44.4]} 20... c5 {[%clk 0:02:39.5]} 21.
Rcd1 {[%clk 0:01:33]} 21... cxd4 {[%clk 0:02:38.6]} 22. Nxd4 {[%clk 0:01:31.8]}
22... Rd7 {[%clk 0:02:32]} 23. Rd2 {[%clk 0:01:06.9]} 23... Rfd8 {[%clk
0:02:30.9]} 24. Rfd1 {[%clk 0:01:07]} 24... Rd6 {[%clk 0:02:07]} 25. Kg2 {[%clk
0:01:04.3]} 25... Qc5 {[%clk 0:02:05.4]} 26. Nf3 {[%clk 0:01:02.7]} 26... Rxd2
{[%clk 0:01:59.7]} 27. Rxd2 {[%clk 0:01:03.6]} 27... Rd7 {[%clk 0:01:57]} 28.
Rxd7 {[%clk 0:00:58.1]} 28... Nxd7 {[%clk 0:01:57.9]} 29. Qd2 {[%clk 0:00:57.5]}
29... Qc6 {[%clk 0:01:57.4]} 30. Kg3 {[%clk 0:00:51]} 30... f6 {[%clk
0:01:55.1]} 31. Nh4 {[%clk 0:00:40.2]} 31... Kf7 {[%clk 0:01:52.7]} 32. f4
{[%clk 0:00:39.2]} 32... Nc5 {[%clk 0:01:50.1]} 33. Qc2 {[%clk 0:00:30.8]} 33...
Ne4+ {[%clk 0:01:49.6]} 34. Kh2 {[%clk 0:00:31.1]} 34... f5 {[%clk 0:01:48.3]}
35. gxf5 {[%clk 0:00:29.4]} 35... gxf5 {[%clk 0:01:48.1]} 36. Qg2 {[%clk
0:00:28.8]} 36... Qd6 {[%clk 0:01:46.1]} 37. Qg6+ {[%clk 0:00:28.5]} 37... Kf8
{[%clk 0:01:45.2]} 38. Ng2 {[%clk 0:00:20.6]} 38... Nf6 {[%clk 0:01:45.5]} 39.
Qg5 {[%clk 0:00:19.4]} 39... Kf7 {[%clk 0:01:44.5]} 40. h4 {[%clk 0:00:18.7]}
40... Qd1 {[%clk 0:01:42.4]} 41. Kh3 {[%clk 0:00:12.7]} 41... Qh1+ {[%clk
0:01:40.8]} 42. Kg3 {[%clk 0:00:12.5]} 42... Ne4+ {[%clk 0:01:41.3]} 0-1

[Event "*** Titled Tuesday Blitz"]
[Site "Chess.com"]
[Date "2020.05.05"]
[Round "7"]
[White "Djager97"]
[Black "SketchyMoves"]
[Result "0-1"]
[WhiteElo "2472"]
[BlackElo "2626"]
[TimeControl "180+1"]
[EndTime "11:17:30 PDT"]
[Termination "SketchyMoves won by resignation"]

1. e4 {[%clk 0:03:00.9]} 1... e6 {[%clk 0:02:59.4]} 2. d4 {[%clk 0:03:00.5]}
2... d5 {[%clk 0:03:00.3]} 3. Nc3 {[%clk 0:03:01]} 3... Nc6 {[%clk 0:02:59.9]}
4. Nf3 {[%clk 0:02:59.8]} 4... Nf6 {[%clk 0:03:00.2]} 5. e5 {[%clk 0:02:59.1]}
5... Ne4 {[%clk 0:02:57.5]} 6. Bd3 {[%clk 0:02:59.6]} 6... Bb4 {[%clk
0:02:56.6]} 7. Bd2 {[%clk 0:03:00]} 7... Nxd2 {[%clk 0:02:57.1]} 8. Qxd2 {[%clk
0:03:00]} 8... Bd7 {[%clk 0:02:58]} 9. O-O {[%clk 0:02:58.3]} 9... O-O {[%clk
0:02:57.7]} 10. a3 {[%clk 0:02:57.4]} 10... Ba5 {[%clk 0:02:58]} 11. b4 {[%clk
0:02:53.7]} 11... Bb6 {[%clk 0:02:57.9]} 12. Ne2 {[%clk 0:02:53.4]} 12... f6
{[%clk 0:02:58.4]} 13. exf6 {[%clk 0:02:51.9]} 13... Qxf6 {[%clk 0:02:59.3]} 14.
Bb5 {[%clk 0:02:24.8]} 14... Nb8 {[%clk 0:02:43.7]} 15. Bxd7 {[%clk 0:02:17]}
15... Nxd7 {[%clk 0:02:44.6]} 16. Ng3 {[%clk 0:02:06.9]} 16... c6 {[%clk
0:02:41.1]} 17. Rae1 {[%clk 0:01:59.8]} 17... Rae8 {[%clk 0:02:38.8]} 18. c3
{[%clk 0:01:41.1]} 18... e5 {[%clk 0:02:36.8]} 19. dxe5 {[%clk 0:01:31.2]} 19...
Nxe5 {[%clk 0:02:37.7]} 20. Nd4 {[%clk 0:01:26.1]} 20... Nc4 {[%clk 0:02:26.3]}
21. Qa2 {[%clk 0:01:24.6]} 21... Bxd4 {[%clk 0:02:24.9]} 22. cxd4 {[%clk
0:01:24.6]} 22... Qxd4 {[%clk 0:02:25.5]} 23. Re2 {[%clk 0:01:17.8]} 23... Rxe2
{[%clk 0:02:15.8]} 24. Qxe2 {[%clk 0:01:17.4]} 24... Qf6 {[%clk 0:02:01.9]} 25.
a4 {[%clk 0:01:16.1]} 25... Ne5 {[%clk 0:01:56]} 26. h3 {[%clk 0:01:15.7]} 26...
Ng6 {[%clk 0:01:55.9]} 27. Re1 {[%clk 0:01:12.5]} 27... Nf4 {[%clk 0:01:55.5]}
28. Qe3 {[%clk 0:00:58.3]} 28... d4 {[%clk 0:01:54.9]} 29. Qd2 {[%clk 0:00:57]}
29... d3 {[%clk 0:01:50.7]} 30. f3 {[%clk 0:00:50.9]} 30... Qg5 {[%clk
0:01:47.7]} 31. Kh2 {[%clk 0:00:44.6]} 31... h5 {[%clk 0:01:40.8]} 32. Ne4
{[%clk 0:00:34.8]} 32... Qe5 {[%clk 0:01:40.3]} 33. g3 {[%clk 0:00:25.9]} 33...
Ne2 {[%clk 0:01:34.9]} 34. Qxd3 {[%clk 0:00:24.9]} 34... Nxg3 {[%clk 0:01:34.2]}
35. Nxg3 {[%clk 0:00:24]} 35... Qxe1 {[%clk 0:01:32.2]} 36. Qc4+ {[%clk
0:00:19.6]} 36... Kh8 {[%clk 0:01:30]} 37. Qh4 {[%clk 0:00:18.1]} 37... Qf2+
{[%clk 0:01:28.1]} 38. Kh1 {[%clk 0:00:18.2]} 38... Qxf3+ {[%clk 0:01:28.5]} 39.
Kh2 {[%clk 0:00:18.6]} 39... Qf2+ {[%clk 0:01:27.5]} 40. Kh1 {[%clk 0:00:18.7]}
40... Qe1+ {[%clk 0:01:27.9]} 0-1

[Event "*** Titled Tuesday Blitz"]
[Site "Chess.com"]
[Date "2020.05.05"]
[Round "7"]
[White "francyIM"]
[Black "thedjoker98"]
[Result "1-0"]
[WhiteElo "2643"]
[BlackElo "2492"]
[TimeControl "180+1"]
[EndTime "11:17:33 PDT"]
[Termination "francyIM won by resignation"]

1. d4 {[%clk 0:03:00.9]} 1... d5 {[%clk 0:02:59.7]} 2. c4 {[%clk 0:03:00.9]}
2... c6 {[%clk 0:03:00.1]} 3. Nf3 {[%clk 0:03:00.4]} 3... Nf6 {[%clk 0:03:00.5]}
4. e3 {[%clk 0:03:00.8]} 4... Bg4 {[%clk 0:03:00.2]} 5. Nc3 {[%clk 0:02:59.4]}
5... e6 {[%clk 0:03:00.4]} 6. Qb3 {[%clk 0:02:59]} 6... Qb6 {[%clk 0:03:00.2]}
7. Nh4 {[%clk 0:02:58.4]} 7... Be7 {[%clk 0:02:59.6]} 8. h3 {[%clk 0:02:58.4]}
8... Bh5 {[%clk 0:03:00.2]} 9. g4 {[%clk 0:02:58.6]} 9... Bg6 {[%clk 0:03:00.7]}
10. Nxg6 {[%clk 0:02:58.9]} 10... hxg6 {[%clk 0:03:01.6]} 11. Bg2 {[%clk
0:02:59.3]} 11... g5 {[%clk 0:02:58.7]} 12. Bd2 {[%clk 0:02:59.3]} 12... Nbd7
{[%clk 0:02:55.1]} 13. Qa4 {[%clk 0:02:59]} 13... Qb4 {[%clk 0:02:41.1]} 14.
cxd5 {[%clk 0:02:53.5]} 14... Qxa4 {[%clk 0:02:35.7]} 15. Nxa4 {[%clk
0:02:54.4]} 15... exd5 {[%clk 0:02:36]} 16. f3 {[%clk 0:02:53.8]} 16... Nb6
{[%clk 0:02:31.9]} 17. Nxb6 {[%clk 0:02:52.4]} 17... axb6 {[%clk 0:02:32.8]} 18.
e4 {[%clk 0:02:52.8]} 18... dxe4 {[%clk 0:02:22.9]} 19. fxe4 {[%clk 0:02:53.7]}
19... Nh7 {[%clk 0:02:20.4]} 20. Bc3 {[%clk 0:02:40.3]} 20... Nf8 {[%clk
0:02:17.6]} 21. a3 {[%clk 0:02:38.4]} 21... Ng6 {[%clk 0:02:15.1]} 22. O-O-O
{[%clk 0:02:34.3]} 22... Nf4 {[%clk 0:02:14.8]} 23. Bf1 {[%clk 0:02:34.6]} 23...
O-O-O {[%clk 0:02:10.6]} 24. Rh2 {[%clk 0:02:14.8]} 24... Rh6 {[%clk 0:01:52.8]}
25. Rhd2 {[%clk 0:01:58.6]} 25... Nxh3 {[%clk 0:01:46.1]} 26. d5 {[%clk
0:01:55.2]} 26... Nf4 {[%clk 0:01:24.6]} 27. Bxg7 {[%clk 0:01:51.9]} 27... Rh1
{[%clk 0:01:20.3]} 28. Be5 {[%clk 0:01:49.8]} 28... Bc5 {[%clk 0:01:17.2]} 29.
Kb1 {[%clk 0:01:42.7]} 29... Be3 {[%clk 0:01:16.8]} 30. Rc2 {[%clk 0:01:42.9]}
30... Re8 {[%clk 0:00:57.1]} 31. Bxf4 {[%clk 0:00:59]} 31... Bxf4 {[%clk
0:00:58]} 32. dxc6 {[%clk 0:00:59.1]} 32... Rh2 {[%clk 0:00:56.6]} 33. cxb7+
{[%clk 0:00:56.8]} 33... Kxb7 {[%clk 0:00:54.6]} 34. Rd7+ {[%clk 0:00:56.7]}
34... Kb8 {[%clk 0:00:51.8]} 35. Rc6 {[%clk 0:00:56.4]} 35... Rh1 {[%clk
0:00:49.2]} 36. Rxb6+ {[%clk 0:00:55.6]} 36... Kc8 {[%clk 0:00:48.9]} 37. Rd1
{[%clk 0:00:56]} 37... Rd8 {[%clk 0:00:48.3]} 38. Ba6+ {[%clk 0:00:54.2]} 38...
Kc7 {[%clk 0:00:47]} 39. Rb7+ {[%clk 0:00:54.7]} 1-0

[Event "*** Titled Tuesday Blitz"]
[Site "Chess.com"]
[Date "2020.05.05"]
[Round "7"]
[White "Dumbo32"]
[Black "emperor87"]
[Result "0-1"]
[WhiteElo "2377"]
[BlackElo "2576"]
[TimeControl "180+1"]
[EndTime "11:17:33 PDT"]
[Termination "emperor87 won on time"]

1. e4 {[%clk 0:03:00.9]} 1... c5 {[%clk 0:02:59.5]} 2. Nf3 {[%clk 0:03:00.3]}
2... d6 {[%clk 0:02:59.7]} 3. Bb5+ {[%clk 0:02:58]} 3... Nd7 {[%clk 0:02:58.5]}
4. O-O {[%clk 0:02:57.3]} 4... a6 {[%clk 0:02:58.2]} 5. Bc4 {[%clk 0:02:55.1]}
5... e6 {[%clk 0:02:57]} 6. c3 {[%clk 0:02:53.4]} 6... Ngf6 {[%clk 0:02:56.2]}
7. Re1 {[%clk 0:02:52.8]} 7... b5 {[%clk 0:02:55.9]} 8. Bf1 {[%clk 0:02:51.8]}
8... Bb7 {[%clk 0:02:55.7]} 9. d3 {[%clk 0:02:50.8]} 9... Be7 {[%clk 0:02:55.8]}
10. a4 {[%clk 0:02:49.1]} 10... O-O {[%clk 0:02:55.5]} 11. Nbd2 {[%clk
0:02:48.8]} 11... Qc7 {[%clk 0:02:52.4]} 12. d4 {[%clk 0:02:46.2]} 12... d5
{[%clk 0:02:51.2]} 13. e5 {[%clk 0:02:44.9]} 13... Ne4 {[%clk 0:02:48.9]} 14.
axb5 {[%clk 0:02:44]} 14... Nxd2 {[%clk 0:02:45.4]} 15. Bxd2 {[%clk 0:02:40.8]}
15... axb5 {[%clk 0:02:41]} 16. Bxb5 {[%clk 0:02:33.4]} 16... c4 {[%clk
0:02:38.3]} 17. Ba4 {[%clk 0:02:29.1]} 17... Bc6 {[%clk 0:02:37.5]} 18. Bc2
{[%clk 0:02:27.2]} 18... Rfb8 {[%clk 0:02:35.9]} 19. Rxa8 {[%clk 0:02:26.4]}
19... Rxa8 {[%clk 0:02:32.2]} 20. h4 {[%clk 0:02:24]} 20... Qb7 {[%clk
0:02:31.3]} 21. Bc1 {[%clk 0:02:23.3]} 21... Nf8 {[%clk 0:02:28.8]} 22. h5
{[%clk 0:02:22.1]} 22... h6 {[%clk 0:02:27.8]} 23. Nh2 {[%clk 0:02:19.4]} 23...
Ra1 {[%clk 0:02:18.4]} 24. f4 {[%clk 0:02:00]} 24... Bh4 {[%clk 0:02:09.3]} 25.
Rf1 {[%clk 0:01:58.1]} 25... Bg3 {[%clk 0:02:08.2]} 26. Ng4 {[%clk 0:01:56.9]}
26... Qe7 {[%clk 0:02:05.1]} 27. f5 {[%clk 0:01:47.7]} 27... Qh4 {[%clk
0:02:01.9]} 28. Qf3 {[%clk 0:01:33.2]} 28... exf5 {[%clk 0:01:32.2]} 29. Qxf5
{[%clk 0:01:32.4]} 29... Be8 {[%clk 0:01:31.4]} 30. Be3 {[%clk 0:00:16.8]} 30...
Rxf1+ {[%clk 0:01:28.3]} 31. Kxf1 {[%clk 0:00:17]} 31... Bd7 {[%clk 0:01:27.5]}
0-1

[Event "*** Titled Tuesday Blitz"]
[Site "Chess.com"]
[Date "2020.05.05"]
[Round "7"]
[White "AthanasiusLefebvre"]
[Black "googlegoom"]
[Result "1-0"]
[WhiteElo "2129"]
[BlackElo "2433"]
[TimeControl "180+1"]
[EndTime "11:17:33 PDT"]
[Termination "AthanasiusLefebvre won by resignation"]

1. Nf3 {[%clk 0:03:00.9]} 1... d5 {[%clk 0:02:58.4]} 2. g3 {[%clk 0:03:00.1]}
2... Nf6 {[%clk 0:02:58.6]} 3. Bg2 {[%clk 0:03:00.4]} 3... e6 {[%clk 0:02:59.2]}
4. O-O {[%clk 0:03:00.4]} 4... Be7 {[%clk 0:02:59.8]} 5. d3 {[%clk 0:03:01.3]}
5... b6 {[%clk 0:03:00.3]} 6. c4 {[%clk 0:03:01.6]} 6... Bb7 {[%clk 0:03:00.7]}
7. Nc3 {[%clk 0:03:02.1]} 7... O-O {[%clk 0:02:59.9]} 8. Rb1 {[%clk 0:03:02.5]}
8... c5 {[%clk 0:02:58.1]} 9. a3 {[%clk 0:03:00.4]} 9... d4 {[%clk 0:02:58.1]}
10. Na4 {[%clk 0:02:59.9]} 10... Nc6 {[%clk 0:02:54.7]} 11. Re1 {[%clk
0:02:58.7]} 11... Qc7 {[%clk 0:02:54.4]} 12. Bd2 {[%clk 0:02:53.3]} 12... Bd6
{[%clk 0:02:49.4]} 13. b4 {[%clk 0:02:52.1]} 13... Rad8 {[%clk 0:02:45.9]} 14.
bxc5 {[%clk 0:02:26.4]} 14... Bxc5 {[%clk 0:02:37.8]} 15. Nxc5 {[%clk
0:02:23.9]} 15... bxc5 {[%clk 0:02:38.7]} 16. Rb5 {[%clk 0:02:23.3]} 16... Qe7
{[%clk 0:02:24.7]} 17. Ne5 {[%clk 0:02:14.5]} 17... Nxe5 {[%clk 0:02:21.7]} 18.
Rxb7 {[%clk 0:02:14]} 18... Rd7 {[%clk 0:02:21.4]} 19. Qb3 {[%clk 0:02:09.8]}
19... Rxb7 {[%clk 0:02:18.9]} 20. Qxb7 {[%clk 0:02:09.3]} 20... Qxb7 {[%clk
0:02:16.3]} 21. Bxb7 {[%clk 0:02:08.9]} 21... Rb8 {[%clk 0:02:16.9]} 22. Bg2
{[%clk 0:02:07.5]} 22... Rb3 {[%clk 0:02:11.3]} 23. Bf4 {[%clk 0:02:04.6]} 23...
Ned7 {[%clk 0:02:03.8]} 24. Ra1 {[%clk 0:02:00]} 24... e5 {[%clk 0:01:59]} 25.
Bg5 {[%clk 0:01:53.9]} 25... h6 {[%clk 0:01:58.8]} 26. Bc1 {[%clk 0:01:52.7]}
26... Nb6 {[%clk 0:01:50.3]} 27. a4 {[%clk 0:01:49.4]} 27... a5 {[%clk
0:01:50.5]} 28. Bd2 {[%clk 0:01:46.1]} 28... Rb2 {[%clk 0:01:31.5]} 29. Bxa5
{[%clk 0:01:45.2]} 29... Nc8 {[%clk 0:01:31.9]} 30. Bf3 {[%clk 0:01:33]} 30...
g5 {[%clk 0:01:28.7]} 31. h3 {[%clk 0:01:27.3]} 31... h5 {[%clk 0:01:28.9]} 32.
Bd8 {[%clk 0:01:25.8]} 32... g4 {[%clk 0:01:27.4]} 33. hxg4 {[%clk 0:01:19.7]}
33... hxg4 {[%clk 0:01:27.1]} 34. Bg2 {[%clk 0:01:19.4]} 34... Nd7 {[%clk
0:01:26.5]} 35. a5 {[%clk 0:01:18.2]} 35... Rxe2 {[%clk 0:01:24.5]} 36. a6
{[%clk 0:01:16.6]} 36... Na7 {[%clk 0:01:23.1]} 37. Rb1 {[%clk 0:01:08.9]} 37...
Ra2 {[%clk 0:01:20]} 38. Rb7 {[%clk 0:01:06.9]} 38... Rxa6 {[%clk 0:01:20]} 39.
Rxd7 {[%clk 0:01:06.1]} 39... Nc6 {[%clk 0:01:20.3]} 40. Bf6 {[%clk 0:00:57.6]}
40... Kh7 {[%clk 0:01:16.8]} 41. Be4+ {[%clk 0:00:54.5]} 41... Kg8 {[%clk
0:01:14.6]} 42. Rc7 {[%clk 0:00:41.7]} 1-0